Cogmind - Beta 15 @@@ ROGUE MODE // 2025.07.24 @ 07:53:04 Player: shapeshifter Result: Destroyed by S-10 Pest with Light Assault Rifle Performance ------------- Evolutions (1) 500 Regions Visited (3) 600 Robots Destroyed (25) 125 Value Destroyed (662) 662 Prototype IDs (0) 0 Alien Tech Used (0) 0 Bonus (0) 0 TOTAL SCORE: 1887 Bonus ------- None Cogmind --------- Core Integrity 0/400 Matter 268/300 Energy 350/350 System Corruption 0% Temperature Cool (0) Movement Core (1400) Ox27 Location -9/Mines Parts ------- > --- POWER (1) -------- (None) > --- PROPULSION (2) --- (None) > --- UTILITY (4) ------ Huge Storage Unit High-capacity Battery > --- WEAPON (2) ------- (None) > --- INVENTORY (25) --- Surge Thruster Surge Thruster Surge Thruster Surge Thruster Huge Storage Unit EM Shotgun Heavy Particle Cannon Heavy Particle Cannon Heavy Particle Cannon Flak Cannon Flak Cannon Mining Laser Mining Claw Peak State ------------ > --- POWER ------------ Light Nuclear Core > --- PROPULSION ------- Light Treads Improved Aluminum Leg > --- UTILITY ---------- Huge Storage Unit Sensor Array Seismic Detector Light Armor Plating > --- WEAPON ----------- Heavy Particle Cannon Flak Cannon > --- INVENTORY -------- Light Ion Engine Surge Thruster Surge Thruster Surge Thruster Surge Thruster Huge Storage Unit High-capacity Battery Heavy Particle Cannon Heavy Particle Cannon Heavy Particle Cannon Flak Cannon Flak Cannon Flak Cannon Mining Laser Mining Claw [Rating: 19] Favorites ----------- Power Light Ion Engine Engine Light Ion Engine Power Core Light Nuclear Core Propulsion Light Treads Treads Light Treads Leg Improved Aluminum Leg Wheel Wheel Utility Seismic Detector Device Seismic Detector Storage Huge Storage Unit Protection Light Armor Plating Weapon Flak Cannon Energy Gun EM Pulse Gun Energy Cannon Heavy Particle Cannon Ballistic Gun Light Assault Rifle Ballistic Cannon Flak Cannon Slashing Weapon Mining Claw Build | -11 -10 -9 -9 ------- Run | Yrd Mat Mat Min Slots Evolved 2 | . . 2 . Power . | . . . . Propulsion . | . . . . Utility 2 | . . 2 . Weapon . | . . . . Parts Attached 22 | 7 6 9 . Power 4 | 1 1 2 . Engine 3 | 1 1 1 . Core 1 | . . 1 . Reactor . | . . . . Propulsion 5 | 2 2 1 . Treads 2 | 2 . . . Leg 1 | . . 1 . Wheel 2 | . 2 . . Hover . | . . . . Flight . | . . . . Utility 6 | 2 1 3 . Device 2 | 1 . 1 . Storage 3 | 1 1 1 . Processor . | . . . . Hackware . | . . . . Protection 1 | . . 1 . Artifact . | . . . . Weapon 7 | 2 2 3 . Energy Gun 1 | . 1 . . Energy Cannon 1 | . . 1 . Ballistic Gun 2 | 2 . . . Ballistic Cannon 2 | . . 2 . Launcher . | . . . . Special Weapon . | . . . . Impact Weapon . | . . . . Slashing Weapon 1 | . 1 . . Piercing Weapon . | . . . . Special Melee Weapon . | . . . . Unidentified Prototypes . | . . . . Parts Lost 15 | . 2 8 5 Power 4 | . 1 3 . Propulsion 4 | . . 3 1 Utility 3 | . . 1 2 Weapon 4 | . 1 1 2 Highest Loss Streak 5 | . 1 2 5 To Critical Strikes . | . . . . Average Backups 10 | 3 5 14 13 Power . | . . . . Propulsion 3 | 1 1 4 4 Utility 1 | . 1 1 1 Weapon 5 | 1 2 7 8 Tool/Special . | . . . . Unused Backups 12 | . . . 12 Power . | . . . . Propulsion 4 | . . . 4 Utility 1 | . . . 1 Weapon 7 | . . . 7 Tool/Special . | . . . . Average Slot Usage (%) 91 | . 97 95 72 Engine 6 | . 13 3 . Core 3 | . . 6 . Treads 9 | . 14 10 . Leg 5 | . . 6 9 Wheel 5 | . 13 2 . Device 18 | . 14 21 20 Storage 15 | . 14 14 22 Protection 3 | . . 6 . Energy Gun 1 | . 2 1 . Energy Cannon 6 | . . 10 10 Ballistic Gun 6 | . 18 . . Ballistic Cannon 6 | . . 10 10 Slashing Weapon 2 | . 5 1 . Peak Build Rating 19 | 7 7 19 15 Average Rating 12 | 4 6 16 14 On Entrance 7 | . 7 7 15 Naked Turns . | . . . . Heaviest Build 103 | 11 88 103 98 Greatest Support 40 | 40 40 20 13 Greatest Overweight (x) 33 | . 8 33 30 Average Overweight (x) 6 | . 7 7 7 Largest Inventory Capacity 25 | 8 25 25 25 Average Capacity 23 | 7 24 25 25 Most Carried 17 | 6 8 17 13 Average Carried 10 | 4 5 14 13 Final Capacity 25 | 8 25 25 25 Final Carried 13 | 5 7 13 13 Class Distribution -------------------- 100% | Mutant Dominant Class ---------------- Mutant | -10/Materials Mutant | -9/Materials Mutant | -9/Mines Resources | -11 -10 -9 -9 ----------- Run | Yrd Mat Mat Min Matter Collected 704 | 217 161 316 10 Remotely . | . . . . Salvage Created 621 | 24 200 387 10 Parts 41 | 6 13 21 1 Haulers Intercepted . | . . . . Recyclers Shooed 4 | . 2 2 . Parts Field Recycled . | . . . . Retrieved Matter . | . . . . Parts Self-Destructed . | . . . . Prevented . | . . . . Kills | -11 -10 -9 -9 ------- Run | Yrd Mat Mat Min Combat Hostiles Destroyed 20 | . 4 15 1 Guns 3 | . 3 . . Cannons 16 | . . 15 1 AOE 1 | . 1 . . Classes Destroyed 7 | 1 2 4 . Worker 1 | . . 1 . Tunneler 2 | 2 . . . Watcher 2 | . 1 1 . Swarmer 7 | . . 6 1 Grunt 11 | . 4 7 . Duelist 1 | . . 1 . Sentry 1 | . . 1 . Best Kill Streak 6 | 1 4 6 1 Combat Bots Only 6 | . 3 6 1 Max Kills in Single Turn 2 | 1 1 2 1 Gunslinging . | . . . . Exploded 1 | . 1 . . Melee . | . . . . Uniques/NPCs Destroyed . | . . . . Combat | -11 -10 -9 -9 -------- Run | Yrd Mat Mat Min Hostile Shots Fired 257 | . 67 122 68 Missed 71 | . 17 42 12 Hits 186 | . 50 80 56 Melee 2 | . . 2 . Projectile 184 | . 50 78 56 AOE 1 | . . 1 . Critical Strikes 3 | . 1 2 . Damage Taken 2131 | . 660 1021 450 Core 598 | . 193 154 251 Absorbed by Shields . | . . . . Core Remaining (%) 61 | 100 22 . . Volleys Fired 92 | 7 42 40 3 Largest 2 | 2 2 2 2 Hottest 112 | 40 60 112 112 Shots Fired 175 | 14 76 80 5 Gun 90 | 14 76 . . Cannon 85 | . . 80 5 Launcher . | . . . . Special . | . . . . Kinetic 116 | 14 59 40 3 Thermal 42 | . . 40 2 Explosive . | . . . . Electromagnetic 17 | . 17 . . Robot Hit Streak 12 | 5 12 9 4 Robot Miss Streak 7 | 2 5 7 4 Penetration Max . | . . . . Secondary Targets 1 | . 1 . . Max Gunslinging Chain 1 | . 1 . . Shots Hit Robots 115 | 9 44 58 4 Core Hits 66 | 5 19 39 3 Critical Kills . | . . . . Critical Parts Destroyed . | . . . . Critical Strikes . | . . . . Melee Attacks 21 | . 21 . . Impact . | . . . . Slashing 21 | . 21 . . Piercing . | . . . . Sneak Attacks . | . . . . Combat Hostiles . | . . . . Follow-up Attacks . | . . . . Damage Inflicted 1979 | 67 572 1290 50 Guns 541 | 67 474 . . Cannons 1340 | . . 1290 50 Explosions 98 | . 98 . . Melee . | . . . . Ramming . | . . . . Kinetic 1048 | 67 316 640 25 Thermal 773 | . 98 650 25 Explosive . | . . . . Electromagnetic 158 | . 158 . . Impact . | . . . . Slashing . | . . . . Piercing . | . . . . Highest Corruption . | . . . . Average Corruption . | . . . . Corruption Purged . | . . . . Corruption Blocked . | . . . . Overload Shots . | . . . . Overflow Damage 14 | . . 14 . Projectiles 14 | . . 14 . Explosions . | . . . . Melee . | . . . . Knockbacks 13 | . . 12 1 Impact . | . . . . Kinetic 13 | . . 12 1 Secondary . | . . . . Self-Inflicted Damage . | . . . . Shots . | . . . . Rammed . | . . . . Targets Rammed . | . . . . Kicked . | . . . . Crushed . | . . . . Highest Temperature 324 | . 189 324 54 Average Temperature 98 | . 74 108 30 Received Heat Transfer 708 | . 390 318 . Effects 5 | . . 5 . Interference 5 | . . 5 . Siege Activations . | . . . . Martial Activations . | . . . . Shielding Activations . | . . . . Robots Disrupted . | . . . . Combat Hostiles . | . . . . Robots Corrupted . | . . . . Combat Hostiles . | . . . . Parts Fried . | . . . . Impact Corruptions . | . . . . Robots Melted . | . . . . Combat Hostiles . | . . . . Parts Melted 2 | . . 2 . Heat Transferred 1149 | . 150 962 37 Parts Sabotaged . | . . . . Parts Stolen . | . . . . Parts Stripped . | . . . . Power Chain Reactions 2 | . 2 . . Alert | -11 -10 -9 -9 ------- Run | Yrd Mat Mat Min Maximum Alert Level . | . . . . Low Security (%) 100 | 100 100 100 100 Level 1 . | . . . . Level 2 . | . . . . Level 3 . | . . . . Level 4 . | . . . . Level 5 . | . . . . High Security . | . . . . Max Security . | . . . . Peak Influence 117 | 5 82 117 20 Initial 27 | . . 27 16 Average 27 | . 9 56 1 Influence Increases 636 | 10 144 436 46 Destroy 0b10 Robot/C 400 | . 80 300 20 Destroy 0b10 Robot/NC 25 | 10 5 10 . Destroy Leader 94 | . 22 62 10 Successful Hack 13 | . 5 8 . Disable Machine 60 | . 15 45 . Destroy Structure 29 | . 17 11 1 Lose Combat Pursuer 15 | . . . 15 Influence Decreases 636 | 10 77 461 88 Entered New Map 66 | . . 40 26 Time Decay 444 | 10 67 341 26 Lost Part 126 | . 10 80 36 Squads Dispatched 4 | . 1 3 . Investigation . | . . . . Extermination . | . . . . Reinforcement 4 | . 1 3 . Assault . | . . . . Garrison . | . . . . Intercept . | . . . . Searches Triggered . | . . . . Construction Impeded . | . . . . Haulers Reinforced . | . . . . Active Scanning Responses . | . . . . Cargo Convoy Interrupts . | . . . . Stealth | -11 -10 -9 -9 --------- Run | Yrd Mat Mat Min Distress Signals 7 | . 3 4 . Communications Jammed . | . . . . Distress Signals . | . . . . Times Spotted 46 | . 13 29 4 Peak Tracking Total 7 | . 4 7 4 Tactical Retreats 1 | . . . 1 Traps | -11 -10 -9 -9 ------- Run | Yrd Mat Mat Min Traps Triggered . | . . . . Indirectly . | . . . . Trap Hack Attempts . | . . . . Triggered . | . . . . Disarmed . | . . . . Reprogrammed . | . . . . Reused . | . . . . Traps Extracted . | . . . . Installed . | . . . . Triggered . | . . . . Machines | -11 -10 -9 -9 ---------- Run | Yrd Mat Mat Min Machines Disabled 4 | . 1 3 . Max in Single Turn 2 | . 1 2 . Machines Repaired . | . . . . Machines Dismantled . | . . . . Machines Sabotaged . | . . . . Overloaded Fab Kills . | . . . . Hacking | -11 -10 -9 -9 --------- Run | Yrd Mat Mat Min Machines Accessed 4 | . 2 2 . Terminals 3 | . 1 2 . Fabricators . | . . . . Repair Stations . | . . . . Recycling Units 1 | . 1 . . Scanalyzers . | . . . . Garrison Access . | . . . . Total Hacks 7 | . 4 3 . Successful 3 | . 2 1 . Failed 4 | . 2 2 . Catastrophic 1 | . 1 . . Database Lockouts . | . . . . Manual 5 | . 2 3 . Terminals 5 | . 2 3 . Fabricators . | . . . . Repair Stations . | . . . . Recycling Units 2 | . 2 . . Scanalyzers . | . . . . Garrison Access . | . . . . Terminal Hacks 1 | . . 1 . Branch Access Points 1 | . . 1 . Fabricator Hacks . | . . . . Repair Station Hacks . | . . . . Recycling Unit Hacks 1 | . 1 . . Report Inventory 1 | . 1 . . Scanalyzer . | . . . . Garrison Access Hacks . | . . . . Unauthorized Hacks 1 | . 1 . . Terminals 1 | . 1 . . Botnet 1 | . 1 . . Fabricators . | . . . . Repair Stations . | . . . . Recycling Units . | . . . . Scanalyzers . | . . . . Garrison Access . | . . . . Data Cores Recovered . | . . . . Used . | . . . . Hacking Detections 3 | . 2 1 . Full Trace Events . | . . . . Feedback Events . | . . . . Feedback Blocked . | . . . . Robot Schematics Acquired . | . . . . Robots Built . | . . . . Authchips . | . . . . Time . | . . . . Total Robot Build Rating . | . . . . Part Schematics Acquired . | . . . . Parts Built . | . . . . Authchips . | . . . . Time . | . . . . Total Part Build Rating . | . . . . Parts Repaired . | . . . . Time . | . . . . Parts Recycled . | . . . . Recycled Matter . | . . . . Retrieved Matter . | . . . . Retrieved Components . | . . . . Parts Scanalyzed . | . . . . Part Schematics Acquired . | . . . . Parts Damaged . | . . . . Bothacking | -11 -10 -9 -9 ------------ Run | Yrd Mat Mat Min Used RIF Installer . | . . . . Robots Hacked . | . . . . Non-combat . | . . . . Combat . | . . . . Robot Hacks Applied . | . . . . Relay Couplers Released . | . . . . Fabnet Peak Effective % . | . . . . Robots Rewired . | . . . . Allies Hacked . | . . . . Hacks Repelled . | . . . . Allies | -11 -10 -9 -9 -------- Run | Yrd Mat Mat Min Total Allies . | . . . . Largest Group . | . . . . Highest-Rated Group . | . . . . Highest-Rated Ally . | . . . . Total Orders . | . . . . Ally Attacks . | . . . . Total Damage . | . . . . Kills . | . . . . Allies Corrupted . | . . . . Allies Melted . | . . . . Intel | -11 -10 -9 -9 ------- Run | Yrd Mat Mat Min Active Infowar (turns) 1875 | 11 619 862 383 Sensors 1236 | . . 861 375 Seismic 1629 | 11 619 616 383 Robot Analysis Total . | . . . . Derelict Logs Recovered . | . . . . Drone Launches . | . . . . Drone Recoveries . | . . . . Exploration | -11 -10 -9 -9 ------------- Run | Yrd Mat Mat Min Turns Passed 2038 | 134 619 871 414 Spaces Moved 496 | 71 209 164 52 Core 18 | 14 . 3 1 Treads 165 | 57 13 95 . Legs 51 | . . . 51 Wheels 262 | . 196 66 . Hover . | . . . . Flight . | . . . . Fastest Speed 50 | 50 160 215 610 Average Speed 313 | 138 197 437 628 Slowest Speed 1700 | 160 200 1700 1550 Overloaded Moves . | . . . . Propulsion Burnouts . | . . . . Robots Hopped . | . . . . Potential Cave-ins 3 | . 3 . . Cave-ins Triggered . | . . . . Exploration Rate (%) 21 | 4 44 27 12 Regions Visited 3 Branch Regions 1 Pre-discovered Areas . | . . . . Known Exits Taken 1 | . . 1 . Unknown Exits Taken 2 | 1 1 . . Scrap Searched . | . . . . Spaces Dug 14 | . 14 . . Terrain Destroyed 31 | . 19 11 1 Melee 14 | . 14 . . Projectile 10 | . . 9 1 AOE 7 | . 5 2 . Terrain Rammed . | . . . . Walls Destroyed . | . . . . Machines Disabled . | . . . . Actions | -11 -10 -9 -9 --------- Run | Yrd Mat Mat Min Total 788 | 95 306 253 134 Wait 117 | . 16 22 79 Move 493 | 70 208 163 52 Hop . | . . . . Pick Up 33 | 11 6 16 . Fast Attach 1 | 1 . . . Attach 16 | 6 2 8 . Detach . | . . . . Swap 11 | . 9 2 . Drop 4 | . 2 2 . Fire 92 | 7 42 40 3 Melee 21 | . 21 . . Ram . | . . . . Kick . | . . . . Crush . | . . . . Escape Stasis . | . . . . Rewire . | . . . . Trap . | . . . . Miscellaneous . | . . . . Route ------- -11/Scrapyard -10/Materials -9/Materials -9/Mines History --------- Turn | Location | Event 6 | -11/Scrapyard | Discovered new exit (range 14) 135 | -11/Scrapyard | Entered Materials 318 | -10/Materials | Build established: Mutant 515 | -10/Materials | Discovered new exit (range 4) 682 | -10/Materials | Core integrity fell below 50% 754 | -10/Materials | Entered another Materials area 754 | -9/Materials | Evolved 2 slots: Utility x2 1184 | -9/Materials | Identified exit to Mines 1625 | -9/Materials | Entered Mines 2003 | -9/Mines | Core integrity fell below 50% 2022 | -9/Mines | Core integrity fell below 20% 2039 | -9/Mines | Lost 5 parts (1n2u2w) 2039 | -9/Mines | Destroyed by S-10 Pest with Light Assault Rifle Last Messages --------------- 01825_ T-07 Excavator is excavating. 01835_ U-05 Engineer lays Concrete. 01836_ U-05 Engineer builds a Wall. 01841_ U-05 Engineer lays Concrete. 01842_ U-05 Engineer builds a Wall. 01864_ U-05 Engineer builds a Door. 01999_ Imp. Aluminum Leg destroyed. 02000_ Sensor Array destroyed. 02001_ S-10 Pest destroyed. 02001_ Hvy. Particle Cannon destroyed. 02004_ S-10 Pest knocked back. 02008_ Seismic Detector destroyed. 02008_ Flak Cannon destroyed. 02009_ U-05 Engineer builds a Wall. 02017_ S-10 Pest destroyed. 02018_ Acquired 10 matter. 02021_ K-01 Serf collects debris. 02023_ R-06 Scavenger collects Lgt. Ion Engine. 02027_ K-01 Serf collects debris. Map ----- +----------------------------------------------------+ | ??????????????????????? #???????????????????????? | | ??????????????????????? #???????????????????????? | | ??????????????????????? #???????????????????????? | | ??????????????????????# ##??????????????????????? | | ?????????????????????? #??????????????????????? | | ?????????????????????? ???????????????????????? | | ?????????????????????? ????????????????????????? | | ?????????????????????# #????????????????????????? | | ???????????????????## #????????????????????????? | | ??????????????????## #????????????????????????? | | ??????????????????# #?????????????????????????? | | ?????????????????## #????###???????????????????? | | ?????????????????# ##???# ##??????????????????? | | ????????????????## #??## #??????????????????? | | ???????????????## #### #??????????????????? | | ???????????????# ##?????????????????? | | ???????????????# ## #????????? | | ???????????????# ## ## #?????????? | | ???????????????## #?# ##### #?????????? | | ????????????????###??# ####??# ### #??????????? | | ?????????????????????# #????###???????????????? | | ?????????????????????#### ########???????????????? | | ???????????????????????##%r ????????? | | ???????????????????????##k########???????????????? | | ??????????????????????##s ##?????????????????????? | | ??????????????????????# @ ###???????????????????? | | ??????????????????????## s ##??????????????????? | | ???????????????????????## #??????????????????? | | ????????????????????????## ##?????????????????? | | ?????????????????????????### #?????????????????? | | ???????????????????????????##++##????????????????? | | ???????????????????????????# #????????????????? | | ???????????????????????????# #????????????????? | | ??????????????????????????## #????????????????? | | ??????????????????????????# #????????????????? | | ??????????????????????????## #????????????????? | | ???????????????????????????######????????????????? | | ?????????????????????????????????????????????????? | | ?????????????????????????????????????????????????? | | ?????????????????????????????????????????????????? | | ?????????????????????????????????????????????????? | | | | | | | | | | | | | | | | | | | +----------------------------------------------------+ Best States ------------- Heat Dissipation 28 Energy Generation 14 Energy Capacity 410 Matter Stores 281 Matter Capacity 300 Sight Range 16 Robot Scan Range 14 Terrain Scan Density 10 Armor Coverage 150 Evasion (%) 50 Recoil Reduction 2 Item Schematics ----------------- None Robot Schematics ------------------ None Fabricated ------------ Nothing Repaired ---------- Nothing Alien Tech Used ----------------- None Achievements -------------- Part-time Excavator Challenges ------------ None Game ------ Seed AbsorptionShiftMask Manual? 0 Play Time 00:10:50 Cumulative 46.8 hours Start 2025.07.24 @ 07:43:06 End 2025.07.24 @ 07:53:04 Sessions 1 Manual Loads 0 Difficulty Rogue Special Mode None Game No. 119 Rogue 119 Adventurer 0 Explorer 0 Win Type - Total 0 Types 0/0/0/0/0/0/0/0/0/0 Lore% 38 Gallery% 38 Achievement% 31 Wizard Run 0 Options --------- Layout 1 ASCII 0 Keyboard 0 Movement Mouse Keybinds 0 Fullscreen 1 Font 24/Smallcaps Map View 50x35 Zoom Use 0% Tactical HUD 1 Map Filters NONE Filters NONE Steam 1 RUN: d464b4eb-44a0-4edc-aaf5-0ac9cefb945f